bitfinex/quotes_ETHUSD_20250430
["timestamp","ask_amount","ask_price","bid_price","bid_amount"]
[1745993160511,8.42640937,1807.5,1807.4,5.31067147]
[1745993160730,5.53342186,1807.2,1807.1,4.94807072]
[1745993160930,5.53342186,1807.2,1807.1,3.73537881]
[1745993161092,6.03296501,1807.2,1807.1,3.73537881]
[1745993161295,5.53372807,1807.1,1807.0,9.48807072]
[1745993161896,6.03327122,1807.1,1807.0,9.48807072]
[1745993162096,6.34351662,1807.1,1807.0,9.48807072]
[1745993163026,0.80978855,1807.1,1807.0,9.48807072]
[1745993163229,0.80978855,1807.1,1807.0,10.23937072]
[1745993163601,0.80978855,1807.1,1807.0,10.72577494]
[1745993164415,6.34351662,1807.1,1807.0,9.97447494]
[1745993166331,6.34351662,1807.1,1807.0,6.23909613]
[1745993170437,6.03327122,1807.1,1807.0,6.23909613]
[1745993172336,6.34251207,1807.1,1807.0,6.23909613]
[1745993173736,6.34251207,1807.1,1807.0,4.54]
[1745993173937,7.53010546,1807.1,1807.0,4.54]
[1745993174840,6.34251207,1807.1,1807.0,4.54]
[1745993178944,0.808784,1807.1,1807.0,7.53929613]
[1745993179115,0.49954315,1807.1,1807.0,7.53929613]
[1745993179315,5.53342186,1807.2,1807.1,0.55]
[1745993179524,6.02896059,1807.2,1807.1,0.55]
[1745993180525,6.33853654,1807.2,1807.1,0.55]
[1745993182454,6.02896059,1807.2,1807.1,0.55]
[1745993182655,0.49553873,1807.2,1807.1,0.55]
[1745993184360,0.80541124,1807.2,1807.1,0.55]
[1745993187257,0.80541124,1807.2,1807.0,6.98929613]
[1745993187561,6.3390454,1807.2,1807.0,6.23909613]
[1745993187859,0.30987251,1807.1,1807.0,6.78909613]
[1745993188055,0.80570791,1807.1,1807.0,6.78909613]
[1745993189059,0.4958354,1807.1,1807.0,6.78909613]
[1745993189224,0.8061749,1807.1,1807.0,6.78909613]
[1745993191561,6.33990297,1807.1,1807.0,4.54]
[1745993191764,8.28055668,1807.1,1807.0,4.54]
[1745993192437,5.53449931,1806.9,1806.8,0.55]
[1745993192842,6.03033471,1806.9,1806.8,0.55]
[1745993193243,6.03033471,1806.9,1806.7,4.54]
[1745993193431,0.3103395,1806.8,1806.7,5.09]
[1745993193965,0.8061749,1806.8,1806.7,5.09]
[1745993199340,0.8061749,1806.8,1806.7,5.85142961]
[1745993206869,6.34082178,1806.8,1806.6,1.69909613]
[1745993207071,6.34082178,1806.8,1806.7,4.539]
[1745993209374,0.8061749,1806.8,1806.7,4.539]
[1745993209746,6.34082178,1806.8,1806.7,4.539]
[1745993210448,0.8061749,1806.8,1806.7,5.089]
[1745993210651,0.8061749,1806.8,1806.7,5.84502961]
[1745993212852,0.4958354,1806.8,1806.7,5.84502961]
[1745993213750,6.03048228,1806.8,1806.7,5.84502961]
[1745993213952,6.03048228,1806.8,1806.7,5.089]
[1745993214263,6.03048228,1806.8,1806.7,4.539]
[1745993214885,6.34052866,1806.8,1806.7,4.539]
[1745993216484,0.80588178,1806.8,1806.7,4.539]
[1745993217086,0.80588178,1806.8,1806.6,7.00649613]
[1745993217587,0.31004638,1806.7,1806.6,7.55649613]
[1745993217884,0.80009634,1806.7,1806.6,7.55649613]
[1745993219595,0.80009634,1806.7,1806.6,8.31214574]
[1745993219891,0.49004996,1806.7,1806.6,8.31214574]
[1745993220054,5.53435029,1806.9,1806.7,0.55]
[1745993220383,5.53435029,1806.9,1806.8,1.69909613]
[1745993220909,6.02462283,1806.9,1806.8,1.69909613]
[1745993221058,6.33503969,1806.9,1806.8,1.69909613]
[1745993222984,6.33503969,1806.9,1806.7,1.69909613]
[1745993222985,5.53487779,1806.8,1806.7,1.69909613]
[1745993223156,5.53520387,1806.7,1806.6,4.539]
[1745993223356,6.80102479,1806.7,1806.6,4.539]
[1745993223561,6.80102479,1806.7,1806.4,0.8239]
[1745993223562,5.53556601,1806.5,1806.4,1.69909613]
[1745993223884,6.33595863,1806.5,1806.4,6.23809613]
[1745993224287,6.33595863,1806.5,1806.4,6.78809613]
[1745993224700,0.80039262,1806.5,1806.4,6.78809613]
[1745993225493,7.14725863,1806.5,1806.4,4.539]
[1745993226053,7.14725863,1806.5,1806.4,6.23809613]
[1745993226256,0.80039262,1806.5,1806.4,6.23809613]
[1745993226495,0.80039262,1806.5,1806.4,7.86605362]
[1745993229295,6.33595863,1806.5,1806.4,6.23809613]
[1745993242404,7.12025863,1806.5,1806.4,6.23809613]
[1745993244287,5.53608153,1806.4,1806.3,1.69909613]
[1745993244510,6.33246709,1806.4,1806.3,1.69909613]
[1745993250111,5.53617892,1806.3,1806.2,6.23709613]
[1745993250285,5.53617892,1806.3,1806.2,4.538]
[1745993250485,6.01903026,1806.3,1806.2,4.538]
[1745993250914,0.48285134,1806.3,1806.2,4.538]
[1745993251121,5.84649389,1806.4,1806.2,4.538]
[1745993251307,5.84649389,1806.4,1806.3,1.69909613]
[1745993257532,5.84649389,1806.4,1806.3,1.21476253]
[1745993265945,6.32912256,1806.4,1806.3,1.21476253]
[1745993266155,5.53617892,1806.3,1806.2,4.538]
[1745993266308,5.53617892,1806.3,1806.2,5.75276253]
[1745993266741,6.01880759,1806.3,1806.2,5.75276253]
[1745993267442,6.32922445,1806.3,1806.2,5.75276253]
[1745993270326,5.53648543,1806.2,1806.1,0.05]
[1745993270646,5.84690229,1806.2,1806.1,0.05]
[1745993270857,6.32752646,1806.2,1806.1,1.26476253]
[1745993271377,6.32752646,1806.2,1806.1,0.05]
[1745993271539,7.64033301,1806.2,1806.1,0.05]
[1745993271741,8.47293301,1806.2,1806.1,0.05]
[1745993272851,8.47293301,1806.2,1806.1,1.26476253]
[1745993273468,7.64033301,1806.2,1806.1,1.26476253]
[1745993273613,7.64033301,1806.2,1806.1,1.75097974]
[1745993274794,13.79033301,1806.2,1806.1,1.75097974]
[1745993277639,13.79033301,1806.2,1806.1,0.05]
[1745993279951,14.61283301,1806.2,1806.1,0.05]
[1745993304639,16.79033301,1806.2,1806.1,0.05]
[1745993304816,17.59783301,1806.2,1806.1,1e-08]
[1745993314058,18.81317109,1806.2,1806.1,1e-08]
[1745993324167,17.59783301,1806.2,1806.1,1e-08]
[1745993324344,16.79033301,1806.2,1806.1,1e-08]
[1745993325778,22.62233301,1806.2,1806.1,1e-08]
[1745993325971,16.79033301,1806.2,1806.1,1e-08]
[1745993327997,7.64033301,1806.2,1806.1,0.75070001]
[1745993328176,0.40527738,1807.1,1806.1,0.75070001]
[1745993328177,6.4319295,1807.1,1806.1,7.05303809]
[1745993328368,5.53546569,1806.6,1806.4,0.7507]
[1745993328566,5.53505585,1806.7,1806.5,2.51603808]
[1745993328784,5.53505585,1806.7,1806.6,1.96603808]
[1745993329071,5.53505585,1806.7,1806.6,0.7507]
[1745993332794,5.53505585,1806.7,1806.6,2.45102683]
[1745993333173,5.53484212,1806.8,1806.7,0.7786]
[1745993335429,5.53446914,1806.9,1806.7,0.7786]
[1745993335931,0.39075589,1806.8,1806.7,0.7786]
[1745993337528,0.39075589,1806.8,1806.7,1.3286]
[1745993337827,6.15,1807.1,1806.8,1.3748]
[1745993338135,5.53377039,1807.1,1806.9,0.8248]
[1745993340097,11.68360803,1807.2,1806.9,0.8248]
[1745993340851,6.15,1807.2,1807.0,0.55]
[1745993341003,6.15,1807.2,1807.1,0.7858]
[1745993341201,6.15,1807.2,1807.1,1.08941268]
[1745993344131,6.15,1807.2,1807.1,1.13591268]
[1745993344511,11.68342186,1807.2,1807.1,1.13591268]
[1745993344712,6.15,1807.2,1807.1,1.13591268]
[1745993345222,5.53331508,1807.3,1807.1,1.13591268]
[1745993345536,5.53331508,1807.3,1807.2,4.534]
[1745993345830,5.53331508,1807.3,1807.2,5.10099127]
[1745993355775,5.94730141,1807.3,1807.2,5.10099127]
[1745993356163,5.94730141,1807.3,1807.2,4.534]
[1745993367492,5.53390279,1807.1,1806.9,0.7846]
[1745993367701,5.53390279,1807.1,1807.0,4.548]
[1745993371022,5.94766593,1807.1,1807.0,4.548]
[1745993374931,5.94766593,1807.1,1807.0,6.24832683]
[1745993375221,5.94766593,1807.1,1807.0,6.95161951]
[1745993377304,5.94766593,1807.1,1807.0,6.24832683]
[1745993378316,0.41376314,1807.1,1807.0,6.24832683]
[1745993379317,5.94749121,1807.1,1807.0,6.24832683]
[1745993381721,5.94749121,1807.1,1807.0,4.548]
[1745993387640,0.41376314,1807.1,1807.0,4.548]
[1745993387798,0.41376314,1807.1,1807.0,5.08126]
[1745993388123,5.94749121,1807.1,1807.0,5.08126]
[1745993388623,0.41376314,1807.1,1807.0,5.08126]
[1745993389125,0.41376314,1807.1,1807.0,6.78158683]
[1745993390593,0.41376314,1807.1,1807.0,7.38158683]
[1745993391228,5.94749121,1807.1,1807.0,7.38158683]
[1745993392427,5.94749121,1807.1,1807.0,6.84832683]
[1745993396129,0.41376314,1807.1,1807.0,6.84832683]
[1745993398943,0.41376314,1807.1,1807.0,7.39832683]
[1745993399300,5.53346271,1807.2,1807.0,7.39832683]
[1745993399627,5.53346271,1807.2,1807.1,4.534]
[1745993400803,5.94744901,1807.2,1807.1,4.534]
[1745993405823,5.94744901,1807.2,1807.1,5.74773999]
[1745993406141,5.94744901,1807.2,1807.1,4.534]
[1745993406341,5.94744901,1807.2,1807.1,5.74773999]
[1745993411547,5.94744901,1807.2,1807.1,4.534]
[1745993413252,5.94744901,1807.2,1807.1,5.74773999]
[1745993415212,5.53372807,1807.1,1807.0,0.6]
[1745993415567,15.89958879,1807.1,1807.0,0.6]
[1745993416518,15.09778879,1807.1,1807.0,0.6]
[1745993417870,12.09778879,1807.1,1807.0,1.81373999]
[1745993418039,12.09778879,1807.1,1807.0,2.60423999]
[1745993418220,12.40803345,1807.1,1807.0,2.60423999]
[1745993419527,12.40803345,1807.1,1807.0,3.0897214]
[1745993421459,6.25803345,1807.1,1807.0,3.0897214]
[1745993421628,6.25803345,1807.1,1807.0,7.6237214]
[1745993421822,6.25803345,1807.1,1807.0,8.1737214]
[1745993422049,6.25803345,1807.1,1807.0,8.99109354]
[1745993422553,6.25803345,1807.1,1807.0,7.29187214]
[1745993422759,6.25803345,1807.1,1807.0,8.1737214]
[1745993431564,6.39805276,1807.1,1807.0,8.1737214]
[1745993434868,6.39805276,1807.1,1807.0,7.3832214]
[1745993435177,6.39805276,1807.1,1807.0,5.134]
[1745993435970,7.20965276,1807.1,1807.0,5.134]
[1745993441186,6.39805276,1807.1,1807.0,5.134]
[1745993441330,6.39805276,1807.1,1807.0,6.8332214]
[1745993441529,6.39805276,1807.1,1807.0,6.34771844]
[1745993443535,6.39805276,1807.1,1807.0,6.83324925]
[1745993443732,6.39805276,1807.1,1807.0,7.59653418]
[1745993447173,0.86432469,1807.1,1807.0,7.59653418]
[1745993447942,6.39805276,1807.1,1807.0,7.59653418]
[1745993450143,6.39805276,1807.1,1807.0,8.14653418]
[1745993451075,0.86432469,1807.1,1807.0,8.14653418]
[1745993453479,6.39805276,1807.1,1807.0,8.14653418]
[1745993455287,0.86432469,1807.1,1807.0,8.14653418]
[1745993456983,6.39805276,1807.1,1807.0,8.14653418]
[1745993457187,0.86432469,1807.1,1807.0,8.14653418]
[1745993457488,0.86432469,1807.1,1807.0,17.43716849]
[1745993457780,6.9755,1807.8,1807.0,17.43716849]
[1745993457781,12.50720293,1807.8,1807.3,1.3066]
[1745993457993,12.50720293,1807.8,1807.6,1.69924925]
[1745993458147,0.5562374,1807.7,1807.6,1.69924925]
[1745993460445,6.08812875,1807.7,1807.6,1.69924925]
[1745993460662,0.5562374,1807.7,1807.6,1.69924925]
[1745993462781,0.5562374,1807.7,1807.6,2.24924925]
[1745993462986,0.5562374,1807.7,1807.6,2.55162417]
[1745993464387,0.5562374,1807.7,1807.6,3.15162417]
[1745993468209,5.53139835,1807.9,1807.6,3.15162417]
[1745993468408,0.56003074,1807.7,1807.6,3.15162417]
[1745993468607,8.53037012,1808.2,1807.8,0.55]
[1745993468608,0.824,1808.2,1807.8,0.55]
[1745993468907,6.35456707,1808.2,1808.0,1.69924925]
[1745993469111,5.53056707,1808.2,1808.0,1.69924925]
[1745993471310,5.53056707,1808.2,1808.0,2.40028418]
[1745993471807,5.53066755,1808.1,1808.0,2.95028418]
[1745993472819,6.33666755,1808.1,1807.9,4.533]
[1745993473016,5.53097345,1808.0,1807.9,4.533]
[1745993475683,5.53097345,1808.0,1807.9,6.23224925]
[1745993476024,6.09784457,1808.0,1807.9,6.23224925]
[1745993479725,0.56687112,1808.0,1807.9,6.23224925]
[1745993481526,0.56687112,1808.0,1807.9,7.46600515]
[1745993482031,5.53068349,1808.1,1807.9,7.46600515]
[1745993482206,0.56687112,1808.0,1807.9,7.46600515]
[1745993484939,0.56687112,1808.0,1807.9,8.23250515]
[1745993485107,5.53024741,1808.3,1807.9,8.23250515]
[1745993485308,0.56687112,1808.2,1808.1,2.24924925]
[1745993485509,5.52991959,1808.4,1808.1,3.01574925]
[1745993485699,6.09775474,1808.3,1808.1,3.01574925]
[1745993485898,6.09775474,1808.3,1808.2,0.85157493]
[1745993486839,6.40789291,1808.3,1808.2,0.85157493]
[1745993497355,6.40789291,1808.3,1807.8,23.80139367]
[1745993497356,5.53097345,1808.0,1807.8,19.96924925]
[1745993497648,5.53097345,1808.0,1807.9,4.53]
[1745993498453,5.53178924,1807.8,1807.5,2.46414925]
[1745993498630,5.53178924,1807.8,1807.7,4.53]
[1745993498952,6.34552267,1807.9,1807.7,5.043]
[1745993499451,0.3105533,1807.8,1807.7,5.043]
[1745993499750,0.3105533,1807.8,1807.7,6.74224925]
[1745993506107,0.8800256,1807.8,1807.7,6.74224925]
[1745993506416,0.5694723,1807.8,1807.7,6.74224925]
[1745993506814,6.34548594,1807.9,1807.7,6.74224925]
[1745993507018,0.5694723,1807.8,1807.7,6.74224925]
[1745993507504,6.34548594,1807.9,1807.7,6.74224925]
[1745993507813,0.5694723,1807.8,1807.7,6.74224925]
[1745993508219,6.34548594,1807.9,1807.7,6.74224925]
[1745993508418,0.5694723,1807.8,1807.7,6.74224925]
[1745993508785,6.34548594,1807.9,1807.7,6.74224925]
[1745993508985,0.5694723,1807.8,1807.7,6.74224925]
[1745993509185,6.34548594,1807.9,1807.7,6.74224925]
[1745993509384,0.5694723,1807.8,1807.7,6.74224925]
[1745993509585,6.34548594,1807.9,1807.7,6.74224925]
[1745993509785,0.5694723,1807.8,1807.7,6.74224925]
[1745993509987,6.34548594,1807.9,1807.7,6.74224925]
[1745993510190,0.5694723,1807.8,1807.7,6.74224925]
[1745993510521,6.34548594,1807.9,1807.7,6.74224925]
[1745993510686,0.5694723,1807.8,1807.7,6.74224925]
[1745993511019,6.34548594,1807.9,1807.7,6.74224925]
[1745993511189,0.5694723,1807.8,1807.7,6.74224925]
[1745993511392,6.34548594,1807.9,1807.7,6.74224925]
[1745993511589,0.5694723,1807.8,1807.7,6.74224925]
[1745993511819,11.68037305,1808.2,1808.0,0.55]
[1745993511820,11.68037087,1808.2,1808.0,0.55]
[1745993512024,11.68037087,1808.2,1808.1,4.531]
[1745993512613,11.99065771,1808.2,1808.1,4.531]
[1745993513589,12.75875771,1808.2,1808.1,4.531]
[1745993514013,5.53108619,1808.0,1807.8,1.69924925]
[1745993514294,5.53108619,1808.0,1807.9,4.531]
[1745993515198,5.84134745,1808.0,1807.9,4.531]
[1745993518423,0.31026126,1808.0,1807.9,4.531]
[1745993518795,0.31026126,1808.0,1807.9,6.53162492]
[1745993519239,6.15,1808.2,1808.0,0.55]
[1745993519443,6.15,1808.2,1808.1,1.69924925]
[1745993520417,6.46041851,1808.2,1808.1,1.69924925]
[1745993520619,11.99078019,1808.2,1808.1,1.69924925]
[1745993520914,12.46975546,1808.2,1808.1,1.69924925]
[1745993522142,6.93939378,1808.2,1808.1,3.03364925]
[1745993522436,6.62897527,1808.2,1808.1,3.39201417]
[1745993524145,0.47897527,1808.2,1808.1,3.39201417]
[1745993524517,5.52962988,1808.5,1808.1,3.39201417]
[1745993524718,0.44065607,1808.2,1808.1,3.39201417]
[1745993524927,5.52962988,1808.5,1808.1,3.39201417]
[1745993525260,0.44065607,1808.4,1808.3,0.55]
[1745993525446,0.44065607,1808.4,1808.3,5.08]
[1745993525613,0.75098805,1808.4,1808.3,5.08]
[1745993526318,0.75098805,1808.4,1808.3,5.68]
[1745993527549,0.75098805,1808.4,1808.3,7.37924925]
[1745993527722,0.75098805,1808.4,1808.3,8.15109432]
[1745993528438,0.44065607,1808.4,1808.3,8.15109432]
[1745993534253,5.52926661,1808.6,1808.3,8.15109432]
[1745993534441,0.44065607,1808.4,1808.3,8.15109432]
[1745993534750,5.52926661,1808.6,1808.3,8.15109432]
[1745993534950,0.44470716,1808.4,1808.3,7.37924925]
[1745993535555,5.52961952,1808.5,1808.3,7.37924925]
[1745993535723,0.44470716,1808.4,1808.3,7.37924925]
[1745993539255,5.52926661,1808.6,1808.3,7.37924925]
[1745993539454,0.44470716,1808.4,1808.3,8.17434925]
[1745993539651,5.52926661,1808.6,1808.3,9.03123363]
[1745993539952,0.44470716,1808.4,1808.3,9.03123363]
[1745993540149,5.52926661,1808.6,1808.3,9.03123363]
[1745993540350,0.44470716,1808.4,1808.3,9.03123363]
[1745993541661,11.67898318,1808.7,1808.3,9.03123363]
[1745993541871,11.67898318,1808.7,1808.5,0.55]
[1745993542037,0.31033572,1808.6,1808.5,0.55]
[1745993542237,0.31033572,1808.6,1808.5,5.086]
[1745993542664,5.83947428,1808.6,1808.5,5.086]
[1745993550875,6.28523148,1808.6,1808.5,5.086]
[1745993552877,0.75609292,1808.6,1808.5,5.5946]
[1745993554484,0.75609292,1808.6,1808.5,7.29384925]
[1745993555385,0.75609292,1808.6,1808.5,8.10083922]
[1745993555548,0.75609292,1808.6,1808.5,13.57499354]
[1745993555884,0.4457572,1808.6,1808.5,13.99383953]
[1745993556477,0.44800705,1808.6,1808.5,13.99383953]
[1745993556693,0.05,1808.9,1808.5,13.99383953]
[1745993556875,0.05,1808.9,1808.8,2.50934925]
[1745993557293,0.36056387,1808.9,1808.8,2.50934925]
[1745993558264,6.28402536,1809.7,1809.2,0.55]
[1745993558478,12.43400163,1809.7,1809.5,0.55]
[1745993558682,0.7581,1809.8,1809.5,0.55]
[1745993558876,6.28380325,1809.8,1809.5,0.55]
[1745993559394,5.52580868,1809.7,1809.5,0.55]
[1745993560982,11.05185,1809.7,1809.5,0.55]
[1745993561187,5.52580868,1809.7,1809.5,0.55]
[1745993562598,0.7581,1809.8,1809.5,0.55]
[1745993562903,6.28376951,1809.8,1809.5,0.60525686]
[1745993563104,6.28376951,1809.8,1809.5,0.55]
[1745993563303,1e-08,1809.9,1809.7,0.55]
[1745993563605,1e-08,1809.9,1809.8,6.23324925]
[1745993565808,0.45430324,1809.9,1809.8,6.23324925]
[1745993566381,0.45430324,1809.9,1809.8,6.98814925]
[1745993567069,0.45430324,1809.9,1809.8,7.04339628]
[1745993567276,0.45430324,1809.9,1809.8,7.74748888]
[1745993569185,0.45430324,1809.9,1809.8,8.29748888]
[1745993573016,0.45430324,1809.9,1809.8,5.84333963]
[1745993575534,5.97947037,1809.9,1809.8,1.30933963]
[1745993575723,5.97947037,1809.9,1809.8,5.117]
[1745993576029,5.52566287,1809.8,1809.6,19.95324925]
[1745993576239,5.52566287,1809.8,1809.7,5.117]
[1745993576810,5.52536371,1809.9,1809.7,5.117]
[1745993579521,11.0507659,1809.9,1809.7,5.117]
[1745993579841,1e-08,1809.9,1809.8,3.07614925]
[1745993580965,0.4690627,1809.9,1809.8,3.07614925]
[1745993581441,5.99422983,1809.9,1809.8,2.24924925]
[1745993588759,5.99422983,1809.9,1809.8,2.84924925]
[1745993589335,5.99422983,1809.9,1809.8,3.84157667]
[1745993590967,6.77372983,1809.9,1809.8,0.6]
[1745993594478,12.92372983,1809.9,1809.8,0.6]
[1745993595443,12.90502983,1809.9,1809.8,0.6]
[1745993595654,5.52699939,1809.3,1809.2,1.69924925]
[1745993595949,0.46898785,1809.3,1809.2,6.81624925]
[1745993596142,0.46898785,1809.3,1809.2,8.85163418]
[1745993596343,5.52681592,1809.4,1809.2,8.85163418]
[1745993596673,0.46898785,1809.3,1809.2,9.40163418]
[1745993596879,0.46898785,1809.3,1809.2,9.45690066]
[1745993597179,5.52681592,1809.4,1809.3,0.55]
[1745993598064,5.52655836,1809.5,1809.3,0.55]
[1745993598445,11.05322448,1809.5,1809.3,0.55]
[1745993598675,5.52669393,1809.4,1809.3,0.55]
[1745993604952,5.52640759,1809.5,1809.3,1.53124124]
[1745993605175,5.52640759,1809.5,1809.4,1.69924925]
[1745993607585,5.52669393,1809.4,1809.3,2.24924925]
[1745993608591,5.52669393,1809.4,1809.3,2.84924925]
[1745993608791,6.27899393,1809.4,1809.3,1.15]
[1745993610493,7.45953408,1809.4,1809.3,0.6]
[1745993610861,7.9216318,1809.4,1809.3,0.6]
[1745993611073,5.52699939,1809.3,1809.2,4.552]
[1745993611473,5.98909711,1809.3,1809.2,4.552]
[1745993612976,13.48396023,1809.3,1809.2,4.552]
[1745993613176,14.24136023,1809.3,1809.2,4.552]
[1745993629516,5.52790895,1809.1,1808.9,0.55]
[1745993629683,5.52790895,1809.1,1809.0,4.553]
[1745993630102,5.52790895,1809.1,1809.0,5.3753]
[1745993636506,5.52790895,1809.1,1809.0,7.62454925]
[1745993637082,11.05501848,1809.2,1809.0,7.62454925]
[1745993637481,5.52761041,1809.1,1809.0,7.62454925]
[1745993640980,5.98678597,1809.1,1809.0,7.62454925]
[1745993649227,5.98678597,1809.1,1809.0,5.9253]
[1745993649422,5.98678597,1809.1,1809.0,5.103]
[1745993651614,0.45917556,1809.1,1809.0,5.103]
[1745993651815,5.52743379,1809.2,1809.0,5.103]
[1745993652016,0.45955031,1809.1,1809.0,5.883]
[1745993652224,5.52743379,1809.2,1809.0,5.883]
[1745993652519,0.45955031,1809.1,1809.0,5.883]
[1745993652819,11.05497951,1809.2,1809.0,5.883]
[1745993652982,0.45955031,1809.1,1809.0,5.883]
[1745993653187,5.52743379,1809.2,1809.1,0.55]
[1745993655899,5.9869841,1809.2,1809.1,0.55]
[1745993664694,5.9869841,1809.2,1809.0,4.553]
[1745993664695,5.52761041,1809.1,1809.0,5.103]
[1745993665046,1.24867539,1809.1,1808.8,3.70435921]
[1745993665197,5.52822157,1808.9,1808.8,3.70435921]
[1745993665391,5.98514946,1808.9,1808.8,3.70435921]
[1745993668337,5.52874162,1808.8,1808.6,7.01514925]
[1745993668838,0.45580369,1808.7,1808.6,8.32166418]
[1745993673337,5.98463655,1808.7,1808.6,8.32166418]
[1745993674913,5.98463655,1808.7,1808.6,7.56514925]
[1745993675238,0.45580369,1808.7,1808.6,7.56514925]
[1745993675436,5.98463655,1808.7,1808.6,5.082]
[1745993680556,0.45580369,1808.7,1808.6,5.082]
[1745993684519,5.98463655,1808.7,1808.6,5.082]
[1745993684922,0.45580369,1808.7,1808.6,5.082]
[1745993685329,5.98463655,1808.7,1808.6,5.082]
[1745993692333,5.98463655,1808.7,1808.6,0.55]
[1745993693257,0.45580369,1808.7,1808.6,0.55]
[1745993695561,0.45580369,1808.7,1808.6,3.20840473]
[1745993695775,0.45580369,1808.7,1808.6,11.73754329]
[1745993695976,5.5268232,1809.4,1809.2,0.55]
[1745993696270,0.4120033,1809.3,1809.2,1.76165317]
[1745993696429,5.5268232,1809.4,1809.2,1.76165317]
[1745993696626,0.4120033,1809.3,1809.2,0.55]
[1745993696826,5.5268232,1809.4,1809.2,0.55]
[1745993697029,0.4120033,1809.3,1809.2,0.55]
[1745993697262,5.5268232,1809.4,1809.2,0.55]
[1745993697463,0.4120033,1809.3,1809.2,0.55]
[1745993697677,5.5268232,1809.4,1809.2,0.55]
[1745993697873,0.4120033,1809.3,1809.2,0.55]
[1745993698025,5.5268232,1809.4,1809.2,0.55]
[1745993698229,0.4120033,1809.3,1809.2,0.55]
[1745993698465,5.5268232,1809.4,1809.2,1.1345]
[1745993698763,0.02,1939.6,1809.2,1.1345]
[1745993698764,0.4120033,1809.3,1809.2,9.17706571]
[1745993699071,5.5259867,1809.7,1809.2,9.17706571]
[1745993699365,0.4120033,1809.3,1809.2,9.17706571]
[1745993699542,5.5259867,1809.7,1809.2,9.23213301]
[1745993699738,5.5259867,1809.7,1809.5,0.55]
[1745993700562,5.5259867,1809.7,1809.5,5.834]
[1745993700769,5.5259867,1809.7,1809.5,5.083]
[1745993700970,5.93808641,1809.6,1809.5,4.533]
[1745993701172,6.69008641,1809.6,1809.5,4.533]
[1745993701345,7.91169372,1809.6,1809.5,4.533]
[1745993702469,5.52746104,1809.2,1808.9,20.76956083]
[1745993702627,5.52746104,1809.2,1809.1,4.532]
[1745993703031,5.93946434,1809.2,1809.1,4.532]
[1745993704374,0.4120033,1809.2,1809.1,4.532]
[1745993705077,5.93930818,1809.2,1809.1,4.532]
[1745993718699,0.4120033,1809.2,1809.1,4.532]
[1745993718909,0.4120033,1809.2,1809.1,5.3464]
[1745993719066,6.15,1809.5,1809.1,7.49476083]
[1745993719408,0.41756614,1809.4,1809.1,13.02222631]
[1745993719575,0.41756614,1809.4,1809.1,7.49476083]
[1745993719977,0.41756614,1809.4,1809.2,1.29947608]
[1745993722082,0.41756614,1809.4,1809.3,2.24516083]
[1745993723774,11.05256364,1809.6,1809.3,2.24516083]
[1745993724113,0.41906917,1809.5,1809.3,2.24516083]
[1745993724315,0.41906917,1809.5,1809.4,0.55]
[1745993724912,11.0520015,1809.7,1809.4,0.55]
[1745993725108,0.41906917,1809.5,1809.4,0.55]
[1745993725717,11.0520015,1809.7,1809.4,0.55]
[1745993725920,0.41906917,1809.5,1809.4,0.96186949]
[1745993729229,0.41906917,1809.5,1809.4,1.75326949]
[1745993729385,5.52580265,1809.7,1809.4,2.65080472]
[1745993729584,12.44675088,1809.8,1809.4,2.65080472]
[1745993729810,0.41906917,1809.6,1809.4,2.65080472]
[1745993730014,12.44675088,1809.8,1809.4,2.65080472]
[1745993730430,0.41906917,1809.7,1809.4,8.17747257]
[1745993730592,0.41906917,1809.7,1809.5,0.81774726]
[1745993730791,0.41906917,1809.7,1809.5,5.35774726]
[1745993736923,0.41906917,1809.7,1809.6,0.55]
[1745993741531,6.28976614,1809.9,1809.6,0.55]
[1745993741719,0.42357744,1809.8,1809.6,0.55]
[1745993741920,0.42357744,1809.8,1809.6,1.31029081]
[1745993742745,0.42357744,1809.8,1809.6,0.76029081]
[1745993745022,0.42357744,1809.8,1809.6,7.09424496]
[1745993745547,0.42357744,1809.8,1809.6,1.56819081]
[1745993748449,0.42357744,1809.8,1809.6,7.14942025]
[1745993748753,0.42357744,1809.8,1809.7,0.71494203]
[1745993750850,0.42357744,1809.8,1809.6,1.56819081]
[1745993752014,0.42357744,1809.8,1809.6,7.09425236]
[1745993753560,0.42357744,1809.8,1809.6,7.14950719]
[1745993753764,0.42357744,1809.8,1809.6,7.09425236]
[1745993756167,0.42357744,1809.8,1809.6,7.14950717]
[1745993756470,0.42357744,1809.8,1809.7,9.3169893]
[1745993762082,0.42357744,1809.8,1809.7,3.79121155]
[1745993762368,0.42357744,1809.8,1809.5,10.88400551]
[1745993762369,5.94904986,1809.8,1809.5,4.54]
[1745993763368,0.42357744,1809.8,1809.6,0.55]
[1745993763663,5.94907922,1809.8,1809.6,0.55]
[1745993764564,0.42357744,1809.8,1809.6,0.55]
[1745993766661,0.42357744,1809.8,1809.6,7.77123944]
[1745993766869,0.42357744,1809.8,1809.7,7.66410169]
[1745993771672,0.42357744,1809.8,1809.7,7.9334055]
[1745993771874,0.42357744,1809.8,1809.7,7.71935061]
[1745993773178,0.42357744,1809.8,1809.7,7.93588427]
[1745993773469,1e-08,1809.9,1809.8,9.07547242]
[1745993773675,0.42815923,1809.9,1809.8,13.45147321]
[1745993777081,1e-08,1809.9,1809.8,13.45147321]
[1745993778348,0.43101223,1809.9,1809.8,13.45147321]
[1745993778846,1e-08,1809.9,1809.8,13.45147321]
[1745993779192,1e-08,1809.9,1809.8,31.70047321]
[1745993784397,0.43101223,1809.9,1809.8,30.94517321]
[1745993784587,1e-08,1809.9,1809.8,30.94517321]
[1745993784761,0.43101223,1809.9,1809.8,30.94517321]
[1745993788666,1e-08,1809.9,1809.8,30.94517321]
[1745993792722,1e-08,1809.9,1809.8,31.70607321]
[1745993799620,1e-08,1809.9,1809.8,28.70001238]
[1745993799801,1e-08,1809.9,1809.8,23.77447242]
[1745993800204,0.43551702,1809.9,1809.8,24.32447242]
[1745993800535,1e-08,1809.9,1809.8,24.32447242]
[1745993802129,0.43551702,1809.9,1809.8,24.32447242]
[1745993803146,1e-08,1809.9,1809.8,24.32447242]
[1745993803313,0.43551702,1809.9,1809.8,27.92710577]
[1745993804141,1e-08,1809.9,1809.8,27.92710577]
[1745993804952,1e-08,1809.9,1809.8,32.45710577]
[1745993805822,0.43551702,1809.9,1809.8,32.45710577]
[1745993806019,0.43551702,1809.9,1809.8,23.329]
[1745993806430,1.25661702,1809.9,1809.8,23.329]
[1745993810955,1.25661702,1809.9,1809.8,5.08]